[Event "*** Titled Tuesday 3|2 Blitz"]
[Site "Chess.com"]
[Date "2017.03.07"]
[Round "6"]
[White "Generalas"]
[Black "Cecile_Haussernot"]
[Result "1/2-1/2"]
[WhiteElo "2177"]
[BlackElo "2273"]
[TimeControl "180+2"]
[EndTime "14:26:13 PST"]
[Termination "Game drawn by repetition"]

1. e4 {[%clk 0:03:02]} 1... c5 {[%clk 0:03:00.1]} 2. c3 {[%clk 0:03:01.1]} 2...
e6 {[%clk 0:02:51.9]} 3. d4 {[%clk 0:02:59.3]} 3... d5 {[%clk 0:02:51.4]} 4.
exd5 {[%clk 0:02:56.8]} 4... exd5 {[%clk 0:02:39.6]} 5. Nf3 {[%clk 0:02:55.2]}
5... Nc6 {[%clk 0:02:38.6]} 6. Be3 {[%clk 0:02:54.3]} 6... Nf6 {[%clk 0:02:35]}
7. dxc5 {[%clk 0:02:53]} 7... Ne4 {[%clk 0:02:36.1]} 8. Nbd2 {[%clk 0:02:36.3]}
8... Nxc5 {[%clk 0:02:36.7]} 9. Nb3 {[%clk 0:02:35.2]} 9... Nxb3 {[%clk
0:02:26.6]} 10. axb3 {[%clk 0:02:34.2]} 10... Bg4 {[%clk 0:02:27.4]} 11. Ra4
{[%clk 0:02:27.5]} 11... Qd7 {[%clk 0:02:10.1]} 12. Bb5 {[%clk 0:02:24.8]} 12...
Qf5 {[%clk 0:01:58.8]} 13. Rxa7 {[%clk 0:01:31.6]} 13... Rxa7 {[%clk 0:01:36.8]}
14. Bxa7 {[%clk 0:01:30.6]} 14... Qe4+ {[%clk 0:01:24.5]} 15. Qe2 {[%clk
0:01:26.8]} 15... Bd6 {[%clk 0:01:23.5]} 16. Qxe4+ {[%clk 0:01:13.3]} 16... dxe4
{[%clk 0:01:24.1]} 17. Nd2 {[%clk 0:01:07.7]} 17... O-O {[%clk 0:01:23.3]} 18.
Bb6 {[%clk 0:01:03]} 18... Bf4 {[%clk 0:00:56.8]} 19. Be3 {[%clk 0:00:48.6]}
19... Bxe3 {[%clk 0:00:43.6]} 20. fxe3 {[%clk 0:00:49.1]} 20... f5 {[%clk
0:00:44.9]} 21. h3 {[%clk 0:00:44.3]} 21... Bh5 {[%clk 0:00:45.4]} 22. O-O
{[%clk 0:00:45]} 22... Ne5 {[%clk 0:00:46.5]} 23. Kh2 {[%clk 0:00:23.8]} 23...
g5 {[%clk 0:00:44.2]} 24. Ra1 {[%clk 0:00:20.4]} 24... Rd8 {[%clk 0:00:18.5]}
25. Nc4 {[%clk 0:00:21.1]} 25... Nd3 {[%clk 0:00:20]} 26. Ra7 {[%clk 0:00:19.5]}
26... f4 {[%clk 0:00:21.4]} 27. Rxb7 {[%clk 0:00:15.5]} 27... f3 {[%clk
0:00:22.6]} 28. gxf3 {[%clk 0:00:15.4]} 28... exf3 {[%clk 0:00:23.9]} 29. Nd2
{[%clk 0:00:11.3]} 29... f2 {[%clk 0:00:24.6]} 30. Kg2 {[%clk 0:00:11.3]} 30...
Be2 {[%clk 0:00:25.6]} 31. Bxd3 {[%clk 0:00:10.5]} 31... Rxd3 {[%clk 0:00:26.4]}
32. Nf1 {[%clk 0:00:10.6]} 32... Rd1 {[%clk 0:00:26.4]} 33. Kxf2 {[%clk
0:00:12.3]} 33... Bxf1 {[%clk 0:00:27.1]} 34. c4 {[%clk 0:00:12.8]} 34... Bxh3
{[%clk 0:00:28.3]} 35. Rb5 {[%clk 0:00:12.7]} 35... Rd2+ {[%clk 0:00:27.6]} 36.
Kg3 {[%clk 0:00:12.9]} 36... g4 {[%clk 0:00:28.2]} 37. c5 {[%clk 0:00:13.8]}
37... Rg2+ {[%clk 0:00:29.4]} 38. Kh4 {[%clk 0:00:13.8]} 38... Rxb2 {[%clk
0:00:31.3]} 39. b4 {[%clk 0:00:13]} 39... Kf7 {[%clk 0:00:31.2]} 40. c6 {[%clk
0:00:13.7]} 40... Rc2 {[%clk 0:00:31.7]} 41. Rb7+ {[%clk 0:00:13.5]} 41... Kg6
{[%clk 0:00:32.4]} 42. c7 {[%clk 0:00:13.9]} 42... Bg2 {[%clk 0:00:26.8]} 43.
Ra7 {[%clk 0:00:14.3]} 43... h5 {[%clk 0:00:26.2]} 44. b5 {[%clk 0:00:15.2]}
44... Bf3 {[%clk 0:00:26.6]} 45. Ra6+ {[%clk 0:00:15.3]} 45... Kf5 {[%clk
0:00:26.6]} 46. Rc6 {[%clk 0:00:16.1]} 46... Rh2+ {[%clk 0:00:16.8]} 47. Kg3
{[%clk 0:00:16.8]} 47... Rg2+ {[%clk 0:00:13.9]} 48. Kh4 {[%clk 0:00:17.8]}
48... Rh2+ {[%clk 0:00:10.9]} 49. Kg3 {[%clk 0:00:18.7]} 49... Rg2+ {[%clk
0:00:12.6]} 50. Kh4 {[%clk 0:00:19.6]} 50... Rh2+ {[%clk 0:00:09.2]} 51. Kg3
{[%clk 0:00:20.3]} 51... Rg2+ {[%clk 0:00:10.7]} 52. Kh4 {[%clk 0:00:21.3]}
52... Rh2+ {[%clk 0:00:10.1]} 53. Kg3 {[%clk 0:00:22.2]} 53... Rg2+ {[%clk
0:00:11.2]} 54. Kh4 {[%clk 0:00:23.1]} 54... Rh2+ {[%clk 0:00:11.8]} 1/2-1/2

[Event "*** Titled Tuesday 3|2 Blitz"]
[Site "Chess.com"]
[Date "2017.03.07"]
[Round "6"]
[White "SCIM"]
[Black "Grootneus"]
[Result "1-0"]
[WhiteElo "2319"]
[BlackElo "2151"]
[TimeControl "180+2"]
[EndTime "14:26:25 PST"]
[Termination "SCIM won by resignation"]

1. d4 {[%clk 0:03:00.3]} 1... Nf6 {[%clk 0:02:59.8]} 2. c4 {[%clk 0:03:00.6]}
2... c5 {[%clk 0:03:01]} 3. d5 {[%clk 0:03:00.2]} 3... e6 {[%clk 0:03:02.2]} 4.
Nc3 {[%clk 0:02:59.7]} 4... exd5 {[%clk 0:03:03.2]} 5. cxd5 {[%clk 0:03:00.8]}
5... d6 {[%clk 0:03:04.9]} 6. Nf3 {[%clk 0:03:01.9]} 6... g6 {[%clk 0:03:06.5]}
7. g3 {[%clk 0:03:03]} 7... Bg7 {[%clk 0:03:07.6]} 8. Bg2 {[%clk 0:03:04.1]}
8... O-O {[%clk 0:03:09.2]} 9. O-O {[%clk 0:03:04.4]} 9... Nbd7 {[%clk
0:03:08.5]} 10. Bf4 {[%clk 0:03:02.1]} 10... Qe7 {[%clk 0:03:09.5]} 11. Re1
{[%clk 0:02:54]} 11... Ng4 {[%clk 0:03:00.9]} 12. Nb5 {[%clk 0:02:39.5]} 12...
Nde5 {[%clk 0:02:35]} 13. h3 {[%clk 0:02:36.8]} 13... Nxf3+ {[%clk 0:02:33.9]}
14. exf3 {[%clk 0:02:35.8]} 14... Ne5 {[%clk 0:02:33.8]} 15. Bxe5 {[%clk
0:02:26.8]} 15... dxe5 {[%clk 0:02:27.8]} 16. d6 {[%clk 0:02:10.4]} 16... Qd8
{[%clk 0:02:26.9]} 17. Nc7 {[%clk 0:02:03.7]} 17... Rb8 {[%clk 0:02:26.7]} 18.
Rc1 {[%clk 0:01:59.8]} 18... b6 {[%clk 0:02:20.6]} 19. b3 {[%clk 0:01:34.9]}
19... Bb7 {[%clk 0:02:18.9]} 20. Nb5 {[%clk 0:01:28.5]} 20... Qd7 {[%clk
0:02:15.9]} 21. Qe2 {[%clk 0:01:06.2]} 21... a6 {[%clk 0:02:07.8]} 22. Nc3
{[%clk 0:01:03.4]} 22... Qxd6 {[%clk 0:02:09]} 23. Rcd1 {[%clk 0:01:03.7]} 23...
Qe7 {[%clk 0:02:10]} 24. Nd5 {[%clk 0:01:01.6]} 24... Bxd5 {[%clk 0:01:55.6]}
25. Rxd5 {[%clk 0:00:59.7]} 25... Rfd8 {[%clk 0:01:44.7]} 26. f4 {[%clk
0:00:47.6]} 26... Rxd5 {[%clk 0:01:38.1]} 27. Bxd5 {[%clk 0:00:47.4]} 27... Qd7
{[%clk 0:01:29.7]} 28. Rd1 {[%clk 0:00:15.1]} 28... exf4 {[%clk 0:01:30.8]} 29.
Bc4 {[%clk 0:00:15.1]} 29... Qxh3 {[%clk 0:01:11.1]} 30. Qe7 {[%clk 0:00:10.5]}
30... Bd4 {[%clk 0:00:44.6]} 31. Qxf7+ {[%clk 0:00:07.8]} 31... Kh8 {[%clk
0:00:45.5]} 32. Rxd4 {[%clk 0:00:08.6]} 32... Qf5 {[%clk 0:00:27]} 33. Qxf5
{[%clk 0:00:07]} 33... gxf5 {[%clk 0:00:28.9]} 34. Rxf4 {[%clk 0:00:07.6]} 34...
b5 {[%clk 0:00:30.8]} 35. Be6 {[%clk 0:00:07.1]} 35... Re8 {[%clk 0:00:32.4]}
36. Bxf5 {[%clk 0:00:07.6]} 36... Re2 {[%clk 0:00:34.1]} 37. a4 {[%clk
0:00:06.9]} 37... c4 {[%clk 0:00:32.4]} 38. axb5 {[%clk 0:00:06]} 38... axb5
{[%clk 0:00:25.6]} 39. bxc4 {[%clk 0:00:03.1]} 39... b4 {[%clk 0:00:27.1]} 40.
Kg2 {[%clk 0:00:04.2]} 40... b3 {[%clk 0:00:27.9]} 41. Rd4 {[%clk 0:00:05]}
41... Rc2 {[%clk 0:00:24.3]} 42. Rd8+ {[%clk 0:00:06.2]} 42... Kg7 {[%clk
0:00:25.1]} 43. Rb8 {[%clk 0:00:07.2]} 43... Rc3 {[%clk 0:00:23.4]} 44. Rb7+
{[%clk 0:00:08.2]} 44... Kf6 {[%clk 0:00:24.2]} 45. Bxh7 {[%clk 0:00:08.9]}
45... Kg5 {[%clk 0:00:25.4]} 46. Be4 {[%clk 0:00:09.3]} 46... Kf6 {[%clk
0:00:26.5]} 47. Bf3 {[%clk 0:00:10.1]} 47... Ke5 {[%clk 0:00:27.7]} 48. c5
{[%clk 0:00:11.1]} 48... Ke6 {[%clk 0:00:26.5]} 49. c6 {[%clk 0:00:11.9]} 49...
Kd6 {[%clk 0:00:26.4]} 50. g4 {[%clk 0:00:12.8]} 50... Ke6 {[%clk 0:00:20.5]}
51. g5 {[%clk 0:00:13.5]} 51... Rc5 {[%clk 0:00:20.2]} 52. g6 {[%clk 0:00:13]}
52... Rg5+ {[%clk 0:00:21.5]} 53. Kf1 {[%clk 0:00:13.7]} 53... Rxg6 {[%clk
0:00:23.4]} 54. Rxb3 {[%clk 0:00:13.7]} 54... Kd6 {[%clk 0:00:25.3]} 55. Rd3+
{[%clk 0:00:14.2]} 55... Kc7 {[%clk 0:00:26.1]} 56. Rd7+ {[%clk 0:00:14.7]}
56... Kc8 {[%clk 0:00:27.5]} 57. Rf7 {[%clk 0:00:14.6]} 57... Re6 {[%clk
0:00:27.3]} 58. Bg4 {[%clk 0:00:13.7]} 58... Kd8 {[%clk 0:00:26]} 59. Bxe6
{[%clk 0:00:11.9]} 59... Ke8 {[%clk 0:00:27.9]} 1-0

[Event "*** Titled Tuesday 3|2 Blitz"]
[Site "Chess.com"]
[Date "2017.03.07"]
[Round "6"]
[White "ChristopherYoo"]
[Black "P0ubelle"]
[Result "0-1"]
[WhiteElo "2143"]
[BlackElo "2050"]
[TimeControl "180+2"]
[EndTime "14:26:27 PST"]
[Termination "P0ubelle won on time"]

1. e4 {[%clk 0:03:02]} 1... e5 {[%clk 0:03:00.5]} 2. Nf3 {[%clk 0:03:02.7]} 2...
Nc6 {[%clk 0:03:01.3]} 3. Bb5 {[%clk 0:03:03.2]} 3... a6 {[%clk 0:03:02]} 4. Ba4
{[%clk 0:03:03.8]} 4... Nf6 {[%clk 0:03:03.6]} 5. O-O {[%clk 0:03:04.4]} 5...
Be7 {[%clk 0:03:04.1]} 6. Re1 {[%clk 0:03:04.9]} 6... b5 {[%clk 0:03:05.2]} 7.
Bb3 {[%clk 0:03:05.4]} 7... d6 {[%clk 0:03:06.6]} 8. c3 {[%clk 0:03:06.2]} 8...
O-O {[%clk 0:03:07.4]} 9. h3 {[%clk 0:03:05.7]} 9... Nb8 {[%clk 0:03:08.6]} 10.
d4 {[%clk 0:03:05.4]} 10... Nbd7 {[%clk 0:03:09.4]} 11. Nbd2 {[%clk 0:03:06.3]}
11... Bb7 {[%clk 0:03:10.5]} 12. Bc2 {[%clk 0:03:07.2]} 12... c5 {[%clk
0:03:11.3]} 13. d5 {[%clk 0:03:03.3]} 13... c4 {[%clk 0:03:12.2]} 14. Nf1 {[%clk
0:03:03]} 14... Qc7 {[%clk 0:03:12.8]} 15. Ng3 {[%clk 0:03:03.3]} 15... g6
{[%clk 0:03:13]} 16. Bh6 {[%clk 0:03:03.7]} 16... Rfb8 {[%clk 0:03:13.2]} 17.
Qc1 {[%clk 0:03:04.2]} 17... Nc5 {[%clk 0:03:10]} 18. Qd2 {[%clk 0:02:35.1]}
18... Bc8 {[%clk 0:03:08.5]} 19. Bg5 {[%clk 0:02:00.1]} 19... Ne8 {[%clk
0:03:06.5]} 20. Nh4 {[%clk 0:01:54.7]} 20... f6 {[%clk 0:03:04.7]} 21. Bh6
{[%clk 0:01:51.7]} 21... a5 {[%clk 0:02:57.7]} 22. f4 {[%clk 0:01:44]} 22...
exf4 {[%clk 0:02:52.7]} 23. Ne2 {[%clk 0:01:32.9]} 23... f5 {[%clk 0:01:59.2]}
24. Qxf4 {[%clk 0:01:30.4]} 24... fxe4 {[%clk 0:01:55.5]} 25. Rf1 {[%clk
0:01:14.2]} 25... Bf6 {[%clk 0:01:39.2]} 26. Nd4 {[%clk 0:00:58]} 26... Nd3
{[%clk 0:01:24.1]} 27. Qxe4 {[%clk 0:00:50.3]} 27... Ne5 {[%clk 0:01:16.9]} 28.
Qf4 {[%clk 0:00:31.7]} 28... Qf7 {[%clk 0:00:40.7]} 29. Nhf3 {[%clk 0:00:26.5]}
29... Bg7 {[%clk 0:00:25.7]} 30. Qe3 {[%clk 0:00:16.5]} 30... Bxh6 {[%clk
0:00:25.7]} 31. Qxh6 {[%clk 0:00:16.7]} 31... Qg7 {[%clk 0:00:27]} 32. Qe3
{[%clk 0:00:15.4]} 32... Nxf3+ {[%clk 0:00:23.6]} 33. Rxf3 {[%clk 0:00:15.1]}
33... Bd7 {[%clk 0:00:23]} 34. Raf1 {[%clk 0:00:15.1]} 34... Nc7 {[%clk
0:00:22.8]} 35. Ne6 {[%clk 0:00:14.1]} 35... Bxe6 {[%clk 0:00:22.1]} 36. dxe6
{[%clk 0:00:14.3]} 36... Rf8 {[%clk 0:00:23.6]} 37. Rxf8+ {[%clk 0:00:13.8]}
37... Rxf8 {[%clk 0:00:25.5]} 38. Rxf8+ {[%clk 0:00:11.7]} 38... Kxf8 {[%clk
0:00:27.4]} 39. Qb6 {[%clk 0:00:10.5]} 39... Qe7 {[%clk 0:00:27.7]} 40. Qxa5
{[%clk 0:00:09.5]} 40... Nxe6 {[%clk 0:00:28.2]} 41. Qxb5 {[%clk 0:00:08.7]}
41... Kf7 {[%clk 0:00:28.1]} 42. Qxc4 {[%clk 0:00:09.3]} 42... Kg7 {[%clk
0:00:29.3]} 43. Qe2 {[%clk 0:00:09.5]} 43... Qf6 {[%clk 0:00:30.1]} 44. Qf2
{[%clk 0:00:09.7]} 44... Qe5 {[%clk 0:00:30.7]} 45. Bd3 {[%clk 0:00:08.5]} 45...
d5 {[%clk 0:00:30.5]} 46. Bf1 {[%clk 0:00:06.2]} 46... Kg8 {[%clk 0:00:31.1]}
47. g3 {[%clk 0:00:06.9]} 47... Ng5 {[%clk 0:00:31.9]} 48. Qf4 {[%clk
0:00:07.4]} 48... Qe7 {[%clk 0:00:30.1]} 49. Bg2 {[%clk 0:00:05.6]} 49... Qe1+
{[%clk 0:00:28.3]} 50. Kh2 {[%clk 0:00:06.8]} 50... Ne4 {[%clk 0:00:26.5]} 51.
Qb8+ {[%clk 0:00:07.5]} 51... Kg7 {[%clk 0:00:25]} 52. Qe5+ {[%clk 0:00:08]}
52... Kh6 {[%clk 0:00:25.3]} 0-1

[Event "*** Titled Tuesday 3|2 Blitz"]
[Site "Chess.com"]
[Date "2017.03.07"]
[Round "6"]
[White "Robin-Side"]
[Black "tjallkompall"]
[Result "0-1"]
[WhiteElo "2453"]
[BlackElo "2481"]
[TimeControl "180+2"]
[EndTime "14:26:37 PST"]
[Termination "tjallkompall won by checkmate"]

1. d4 {[%clk 0:03:02]} 1... Nf6 {[%clk 0:03:00.8]} 2. Nc3 {[%clk 0:03:03.3]}
2... d5 {[%clk 0:03:00]} 3. e4 {[%clk 0:03:03.8]} 3... Nxe4 {[%clk 0:02:57.2]}
4. Nxe4 {[%clk 0:03:04.7]} 4... dxe4 {[%clk 0:02:58.5]} 5. Bc4 {[%clk
0:03:05.7]} 5... g6 {[%clk 0:02:44.7]} 6. c3 {[%clk 0:02:51.1]} 6... Bg7 {[%clk
0:02:38.3]} 7. Qe2 {[%clk 0:02:41.8]} 7... c5 {[%clk 0:02:34.2]} 8. dxc5 {[%clk
0:02:40.6]} 8... Qa5 {[%clk 0:02:28]} 9. Bd2 {[%clk 0:02:19.2]} 9... Qxc5 {[%clk
0:02:24.9]} 10. Qxe4 {[%clk 0:02:17.7]} 10... O-O {[%clk 0:02:22.6]} 11. Nf3
{[%clk 0:02:18.2]} 11... Bf5 {[%clk 0:02:23.1]} 12. Qe2 {[%clk 0:02:18.9]} 12...
Nc6 {[%clk 0:02:18.6]} 13. Be3 {[%clk 0:01:58]} 13... Qa5 {[%clk 0:02:17.4]} 14.
O-O {[%clk 0:01:57.6]} 14... Bg4 {[%clk 0:01:57.2]} 15. h3 {[%clk 0:01:50.3]}
15... Bxf3 {[%clk 0:01:58.3]} 16. Qxf3 {[%clk 0:01:52.2]} 16... Ne5 {[%clk
0:01:59.5]} 17. Qe2 {[%clk 0:01:53.5]} 17... Nxc4 {[%clk 0:02:00.3]} 18. Qxc4
{[%clk 0:01:55.4]} 18... Rfd8 {[%clk 0:01:20.6]} 19. Rfd1 {[%clk 0:01:54.6]}
19... b5 {[%clk 0:01:02.1]} 20. Qb3 {[%clk 0:01:46.8]} 20... h6 {[%clk
0:00:56.7]} 21. Bc5 {[%clk 0:01:41.4]} 21... Bf6 {[%clk 0:00:51.9]} 22. Re1
{[%clk 0:01:23.5]} 22... Qc7 {[%clk 0:00:47.7]} 23. Be3 {[%clk 0:01:03.4]} 23...
b4 {[%clk 0:00:33.6]} 24. cxb4 {[%clk 0:00:59]} 24... Kg7 {[%clk 0:00:25.3]} 25.
a3 {[%clk 0:00:54.8]} 25... a5 {[%clk 0:00:24.6]} 26. Rac1 {[%clk 0:00:39.3]}
26... Qb7 {[%clk 0:00:23.2]} 27. b5 {[%clk 0:00:37.1]} 27... a4 {[%clk
0:00:24.2]} 28. Qb4 {[%clk 0:00:33]} 28... Rd5 {[%clk 0:00:20.3]} 29. b6 {[%clk
0:00:27.5]} 29... Rd7 {[%clk 0:00:21.3]} 30. Rc2 {[%clk 0:00:21.3]} 30... Ra6
{[%clk 0:00:22]} 31. Rec1 {[%clk 0:00:22.2]} 31... Be5 {[%clk 0:00:23]} 32. Rc4
{[%clk 0:00:14.8]} 32... f6 {[%clk 0:00:23.6]} 33. R4c2 {[%clk 0:00:14.6]} 33...
g5 {[%clk 0:00:24.6]} 34. Qc4 {[%clk 0:00:12.3]} 34... Bf4 {[%clk 0:00:20.4]}
35. Bxf4 {[%clk 0:00:12.6]} 35... gxf4 {[%clk 0:00:22.3]} 36. Qxf4 {[%clk
0:00:14]} 36... Rxb6 {[%clk 0:00:23.2]} 37. Qxa4 {[%clk 0:00:13.3]} 37... Rb5
{[%clk 0:00:17.6]} 38. Qf4 {[%clk 0:00:07.2]} 38... Rg5 {[%clk 0:00:18.1]} 39.
g3 {[%clk 0:00:08.2]} 39... Qb6 {[%clk 0:00:17]} 40. a4 {[%clk 0:00:05]} 40...
Rd3 {[%clk 0:00:17.2]} 41. Kg2 {[%clk 0:00:05.4]} 41... Qb7+ {[%clk 0:00:18.3]}
42. Kg1 {[%clk 0:00:06.2]} 42... Qb6 {[%clk 0:00:19.5]} 43. Kh2 {[%clk
0:00:07.2]} 43... Rd4 {[%clk 0:00:20.4]} 44. Qe3 {[%clk 0:00:08.1]} 44... Qb4
{[%clk 0:00:19.3]} 45. b3 {[%clk 0:00:08.9]} 45... Re4 {[%clk 0:00:20.4]} 46.
Qf3 {[%clk 0:00:09.4]} 46... Ree5 {[%clk 0:00:19.9]} 47. Rc3 {[%clk 0:00:09.9]}
47... Rgf5 {[%clk 0:00:20.9]} 48. Qg2 {[%clk 0:00:10.9]} 48... Re2 {[%clk
0:00:21.9]} 49. Rf3 {[%clk 0:00:11.1]} 49... Rd5 {[%clk 0:00:12.8]} 50. Rc4
{[%clk 0:00:11.8]} 50... Qb6 {[%clk 0:00:11.5]} 51. Rg4+ {[%clk 0:00:12.7]}
51... Kf8 {[%clk 0:00:12.8]} 52. Rgf4 {[%clk 0:00:10.8]} 52... Rd1 {[%clk
0:00:13.2]} 53. b4 {[%clk 0:00:10.2]} 53... Ree1 {[%clk 0:00:14.1]} 54. a5
{[%clk 0:00:10.6]} 54... Qc6 {[%clk 0:00:13.4]} 55. g4 {[%clk 0:00:10.5]} 55...
Qc1 {[%clk 0:00:12.5]} 56. Kg3 {[%clk 0:00:11.4]} 56... Rg1 {[%clk 0:00:13.3]}
57. a6 {[%clk 0:00:11.4]} 57... Rxg2+ {[%clk 0:00:13.9]} 58. Kxg2 {[%clk
0:00:13.3]} 58... Rg1+ {[%clk 0:00:14.8]} 59. Kh2 {[%clk 0:00:15.2]} 59... Qf1
{[%clk 0:00:16]} 60. Rg3 {[%clk 0:00:15.4]} 60... Rh1# {[%clk 0:00:17.2]} 0-1

[Event "*** Titled Tuesday 3|2 Blitz"]
[Site "Chess.com"]
[Date "2017.03.07"]
[Round "6"]
[White "capatl"]
[Black "AllStarShark"]
[Result "0-1"]
[WhiteElo "2322"]
[BlackElo "2275"]
[TimeControl "180+2"]
[EndTime "14:26:58 PST"]
[Termination "AllStarShark won by resignation"]

1. c4 {[%clk 0:02:54.4]} 1... e6 {[%clk 0:02:59.8]} 2. Nf3 {[%clk 0:02:49.4]}
2... d5 {[%clk 0:03:00.4]} 3. e3 {[%clk 0:02:47.6]} 3... Nf6 {[%clk 0:03:01.4]}
4. b3 {[%clk 0:02:48.2]} 4... Be7 {[%clk 0:03:01.4]} 5. Bb2 {[%clk 0:02:49]}
5... O-O {[%clk 0:03:02.9]} 6. Nc3 {[%clk 0:02:46.4]} 6... c5 {[%clk 0:02:59.7]}
7. cxd5 {[%clk 0:02:44.8]} 7... exd5 {[%clk 0:02:59.8]} 8. d4 {[%clk 0:02:45.9]}
8... cxd4 {[%clk 0:02:59]} 9. Nxd4 {[%clk 0:02:47.8]} 9... Nc6 {[%clk
0:02:59.5]} 10. Be2 {[%clk 0:02:48.4]} 10... Nxd4 {[%clk 0:02:55.8]} 11. Qxd4
{[%clk 0:02:49]} 11... Be6 {[%clk 0:02:55.7]} 12. O-O {[%clk 0:02:49.1]} 12...
b6 {[%clk 0:02:47.3]} 13. Rfd1 {[%clk 0:02:48.9]} 13... Bc5 {[%clk 0:02:47.6]}
14. Qh4 {[%clk 0:02:41.5]} 14... Ne4 {[%clk 0:02:43]} 15. Qxd8 {[%clk
0:02:19.3]} 15... Rfxd8 {[%clk 0:02:44.9]} 16. Na4 {[%clk 0:02:17.4]} 16... Be7
{[%clk 0:02:35.9]} 17. Rac1 {[%clk 0:02:15.3]} 17... Rac8 {[%clk 0:02:33.2]} 18.
Ba6 {[%clk 0:02:13.4]} 18... Rxc1 {[%clk 0:02:32.6]} 19. Rxc1 {[%clk 0:02:15.3]}
19... h5 {[%clk 0:02:21.2]} 20. Bd4 {[%clk 0:01:50.7]} 20... Bf6 {[%clk
0:02:13.7]} 21. Rc7 {[%clk 0:01:48.3]} 21... Bxd4 {[%clk 0:02:06.6]} 22. exd4
{[%clk 0:01:47.3]} 22... Rd7 {[%clk 0:02:07.4]} 23. Rc2 {[%clk 0:01:43]} 23...
Rd8 {[%clk 0:02:01]} 24. Rc7 {[%clk 0:01:31]} 24... Rd7 {[%clk 0:02:01.1]} 25.
Rc8+ {[%clk 0:01:25.8]} 25... Kh7 {[%clk 0:02:01.6]} 26. Bd3 {[%clk 0:01:18.2]}
26... g6 {[%clk 0:01:58.1]} 27. Rc6 {[%clk 0:01:11.8]} 27... Nd6 {[%clk
0:01:50.2]} 28. Nc3 {[%clk 0:01:11]} 28... Nf5 {[%clk 0:01:36]} 29. Bxf5 {[%clk
0:01:10.6]} 29... Bxf5 {[%clk 0:01:35.3]} 30. f3 {[%clk 0:01:09.9]} 30... Be6
{[%clk 0:01:33.7]} 31. h4 {[%clk 0:01:09.1]} 31... Kg7 {[%clk 0:01:34.5]} 32.
Kf2 {[%clk 0:01:09.8]} 32... Kf6 {[%clk 0:01:35.7]} 33. Ke3 {[%clk 0:01:07.1]}
33... Ke7 {[%clk 0:01:36.9]} 34. Kf4 {[%clk 0:01:03.2]} 34... Rb7 {[%clk
0:01:37.4]} 35. Nd1 {[%clk 0:00:37.8]} 35... Kd7 {[%clk 0:01:37]} 36. Rc3 {[%clk
0:00:36.5]} 36... a5 {[%clk 0:01:23.9]} 37. Ke5 {[%clk 0:00:36.1]} 37... Ke7
{[%clk 0:01:24.3]} 38. Ne3 {[%clk 0:00:33.2]} 38... f6+ {[%clk 0:01:21.6]} 39.
Kf4 {[%clk 0:00:34.2]} 39... Kd6 {[%clk 0:01:20.4]} 40. g4 {[%clk 0:00:33.4]}
40... Rg7 {[%clk 0:01:16.9]} 41. g5 {[%clk 0:00:30.6]} 41... Rf7 {[%clk
0:01:12.7]} 42. gxf6 {[%clk 0:00:30.8]} 42... Rxf6+ {[%clk 0:01:14.6]} 43. Kg5
{[%clk 0:00:32.1]} 43... Rf8 {[%clk 0:00:45.1]} 44. f4 {[%clk 0:00:32.7]} 44...
Bf5 {[%clk 0:00:43.5]} 45. Rc1 {[%clk 0:00:23.1]} 45... Be4 {[%clk 0:00:43.6]}
46. Rf1 {[%clk 0:00:23.1]} 46... Rc8 {[%clk 0:00:41.8]} 47. f5 {[%clk
0:00:22.9]} 47... gxf5 {[%clk 0:00:42.1]} 48. Nxf5+ {[%clk 0:00:24.8]} 48...
Bxf5 {[%clk 0:00:28.6]} 49. Rxf5 {[%clk 0:00:26.7]} 49... Rc2 {[%clk 0:00:27.9]}
50. Rf6+ {[%clk 0:00:26.2]} 50... Kc7 {[%clk 0:00:28.9]} 51. Kxh5 {[%clk
0:00:25.5]} 51... Rxa2 {[%clk 0:00:29.6]} 52. Rf5 {[%clk 0:00:25.8]} 52... Kd6
{[%clk 0:00:29.3]} 53. Rf6+ {[%clk 0:00:26.6]} 53... Kc7 {[%clk 0:00:29.6]} 54.
Rf7+ {[%clk 0:00:25.9]} 54... Kc6 {[%clk 0:00:30.6]} 55. Rf6+ {[%clk 0:00:26]}
55... Kb5 {[%clk 0:00:31.3]} 56. Rd6 {[%clk 0:00:27]} 56... Rh2 {[%clk
0:00:28.6]} 57. Kg5 {[%clk 0:00:24]} 57... Rg2+ {[%clk 0:00:28.7]} 58. Kf4
{[%clk 0:00:24.7]} 58... Rh2 {[%clk 0:00:29.3]} 59. Kg3 {[%clk 0:00:25.7]} 59...
Rb2 {[%clk 0:00:28.8]} 60. Rxd5+ {[%clk 0:00:24.2]} 60... Kb4 {[%clk 0:00:29.3]}
61. Kg4 {[%clk 0:00:24.8]} 61... Rxb3 {[%clk 0:00:27.5]} 62. h5 {[%clk
0:00:26.2]} 62... Rb1 {[%clk 0:00:27.4]} 63. h6 {[%clk 0:00:27.4]} 63... Rg1+
{[%clk 0:00:27.8]} 64. Kf4 {[%clk 0:00:27.1]} 64... Rh1 {[%clk 0:00:28.3]} 65.
Kg5 {[%clk 0:00:25.7]} 65... a4 {[%clk 0:00:29.2]} 66. Kg6 {[%clk 0:00:26.3]}
66... a3 {[%clk 0:00:25.5]} 67. Rd8 {[%clk 0:00:21.1]} 67... a2 {[%clk
0:00:24.7]} 68. Ra8 {[%clk 0:00:21.9]} 68... a1=Q {[%clk 0:00:24.2]} 69. Rxa1
{[%clk 0:00:21.8]} 69... Rxa1 {[%clk 0:00:26.1]} 70. d5 {[%clk 0:00:23]} 70...
Kc5 {[%clk 0:00:26.5]} 71. h7 {[%clk 0:00:24.2]} 71... Rh1 {[%clk 0:00:26.6]}
0-1